lending/lending_fUSD_20240731
["ID","MTS","AMOUNT","RATE_DAILY","PERIOD"]
[333735464,1722425432016,-170.42632731,0.000109,2]
[333735465,1722425432025,-569.78752874,0.000109,2]
[333735466,1722425432035,-569.78752856,0.000109,2]
[333735467,1722425432044,-569.78752856,0.000109,2]
[333735468,1722425432054,-569.78752856,0.000109,2]
[333735469,1722425432063,-569.78752856,0.000109,2]
[333735470,1722425432073,-569.78752856,0.000109,2]
[333735471,1722425432083,-569.78752856,0.000109,2]
[333735473,1722425432092,-569.78752856,0.000109,2]
[333735475,1722425432104,-569.78752856,0.000109,2]
[333735477,1722425432114,-569.78752856,0.000109,2]
[333735478,1722425432124,-569.78752856,0.000109,2]
[333735479,1722425432133,-569.78752856,0.000109,2]
[333735480,1722425432143,-569.78752856,0.000109,2]
[333735482,1722425432152,-569.78752856,0.000109,2]
[333735484,1722425432162,-569.78752856,0.000109,2]
[333735485,1722425432172,-569.78752856,0.000109,2]
[333735486,1722425432182,-569.78752856,0.000109,2]
[333735487,1722425432192,-371.04593375,0.000109,2]
[333735488,1722425432202,-569.78752856,0.000109,2]
[333735489,1722425432211,-569.78752856,0.000109,2]
[333735490,1722425432222,-569.78752856,0.000109,2]
[333735491,1722425432231,-1500.90825935,0.000109,2]
[333735492,1722425432241,-154.36362772,0.000109,2]
[333735493,1722425432251,-1159.13,0.00010959,2]
[333735494,1722425432262,-250.0,0.00010959,2]
[333735495,1722425432271,-150.0,0.00010959,2]
[333735496,1722425432281,-92254.0204324,0.00010997,2]
[333735497,1722425432291,-49106.23317397,0.00010998,2]
[333735498,1722425432355,-835.76890851,0.00010998,2]
[333735499,1722425432432,-2613.49172089,0.00010998,2]
[333735500,1722425432444,-2186.65209013,0.00010998,2]
[333735501,1722425432455,-5373.3577208,0.00010998,2]
[333735502,1722425432465,-691.8916211,0.00010998,2]
[333735503,1722425432474,-3653.12946873,0.00010998,2]
[333735504,1722425432485,-732.16651249,0.00010998,2]
[333735505,1722425432496,-6583.06175556,0.00010998,2]
[333735506,1722425432505,-110.91336768,0.00010999,2]
[333735519,1722425438331,-674.28798057,0.00010999,2]
[333735520,1722425438341,-204.20649094,0.00010999,2]
[333735521,1722425438350,-1244.52019519,0.00010999,2]
[333735522,1722425438360,-2256.21831786,0.00010999,2]
[333735523,1722425438369,-150.0,0.00010999,2]
[333735524,1722425438379,-519021.37166584,0.00011,2]
[333735525,1722425438391,-4109.18191259,0.00011,2]
[333735526,1722425438402,-1301.02858362,0.00011,2]
[333735527,1722425438413,-346412.65701535,0.00011,2]
[333735528,1722425438423,-250.0,0.00011,2]
[333735529,1722425438432,-1659431.32940414,0.00011,2]
[333735577,1722425440270,-622.2600976,0.00010999,2]
[333735578,1722425440313,-3661.8799024,0.00011,2]
[333735579,1722425440325,-719.26763437,0.00011,2]
[333735580,1722425440418,-94784.51855941,0.00011,2]
[333735581,1722425440429,-1682.61449012,0.00011,2]
[333735582,1722425440441,-1087.52481769,0.00011,2]
[333735583,1722425440559,-3652.70313999,0.00011,2]
[333735584,1722425440574,-16752.50077002,0.00011,2]
[333735585,1722425440589,-105170.96352364,0.00011,2]
[333735590,1722425442881,-5461.22,0.00011,2]
[333735591,1722425442892,-1988.54867213,0.00011,2]
[333735592,1722425442930,-6797.15311225,0.00011,2]
[333735593,1722425442942,-32777.964,0.00011,2]
[333735606,1722425445886,-922.12657432,0.000109,2]
[333735607,1722425445896,-311.1300488,0.00010999,2]
[333735608,1722425445906,-5649.66426584,0.00011,2]
[333735609,1722425445917,-6320.5,0.00011,2]
[333735610,1722425446069,-92566.32931633,0.00011,2]
[333736151,1722425706496,373.22,0.0001337,30]
[333736175,1722426064598,800.0,0.00026986,120]
[333736184,1722426234152,342.11,0.0001337,30]
[333736216,1722426631766,-320.91,8.219e-05,2]
[333736218,1722426631776,-852.96592861,9.579e-05,2]
[333736222,1722426632062,-2000.0,9.579e-05,2]
[333736223,1722426632074,-400.0,9.631e-05,2]
[333736224,1722426632084,-250.0,9.632e-05,2]
[333736225,1722426632097,-300.0,9.658e-05,2]
[333736226,1722426632106,-649.24384714,9.659e-05,2]
[333736227,1722426632128,-278.60878409,9.659e-05,2]
[333736228,1722426632138,-1263.9469986,9.659e-05,2]
[333736230,1722426632150,-4999.02376926,9.659e-05,2]
[333736244,1722426632966,-603.38328281,9.659e-05,2]
[333736245,1722426632979,-6286.357445,9.659e-05,2]
[333736246,1722426632990,-289.3455407,9.659e-05,2]
[333736247,1722426633053,-9510.0903324,9.659e-05,2]
[333736248,1722426633062,-1000.0,9.837e-05,2]
[333736249,1722426633072,-371.64791517,0.0001,2]
[333736250,1722426633081,-1250.0,0.0001,2]
[333736251,1722426633090,-300.0,0.0001,3]
[333736252,1722426633099,-1995.26,0.0001,2]
[333736253,1722426633109,-150.99,0.0001,2]
[333736254,1722426633118,-287.01,0.000101,2]
[333736255,1722426633135,-5923.61,0.000101,2]
[333736256,1722426633149,-150.99,0.000101,2]
[333736257,1722426633158,-700.0,0.000101,3]
[333736258,1722426633167,-299.99,0.000101,2]
[333736259,1722426633177,-205.39,0.00010158,2]
[333736260,1722426633186,-1100.0,0.000102,3]
[333736261,1722426633195,-1500.0,0.000103,3]
[333736262,1722426633204,-1900.0,0.000104,3]
[333736263,1722426633213,-320.91,0.00010457,2]
[333736264,1722426633223,-151.96,0.000105,2]
[333736265,1722426633233,-155.59290137,0.000105,2]
[333736266,1722426633242,-300.0,0.000105,3]
[333736267,1722426633251,-300.0,0.000106,3]
[333736268,1722426633260,-300.0,0.000107,3]
[333736269,1722426633269,-213.0267,0.00010798,2]
[333736270,1722426633279,-2096.368,0.00010798,2]
[333736271,1722426633288,-561.9884,0.000108,2]
[333736272,1722426633298,-300.0,0.000108,3]
[333736273,1722426633308,-400.0,0.00010834,2]
[333736274,1722426633318,-507.3073,0.00010897,2]
[333736275,1722426633328,-3952.4982,0.00010897,2]
[333736276,1722426633337,-3438.48870942,0.00010897,2]
[333736277,1722426633347,-5671.9897,0.00010898,2]
[333736278,1722426633357,-7120.2614438,0.00010898,2]
[333736279,1722426633405,-7182.79202017,0.00010898,2]
[333736280,1722426633459,-21162.60343603,0.00010898,2]
[333736281,1722426633468,-8266.5044,0.00010898,2]
[333736282,1722426633479,-65974.3056738,0.000109,2]
[333736283,1722426633490,-9833.74117011,0.000109,2]
[333736285,1722426637918,-384.2290936,0.000109,2]
[333736286,1722426637930,-9416.82015602,0.000109,2]
[333736287,1722426637941,-2109.83826179,0.000109,2]
[333736288,1722426637952,-2529.22114468,0.000109,2]
[333736289,1722426637961,-783.6003,0.000109,2]
[333736290,1722426637971,-2549.5628,0.000109,2]
[333736291,1722426637981,-16666.4737,0.000109,2]
[333736292,1722426637992,-1100.0,0.000109,3]
[333736293,1722426638001,-6652.939,0.000109,2]
[333736294,1722426638011,-250.0,0.00010959,2]
[333736295,1722426638021,-2954.87989269,0.00010998,2]
[333736296,1722426638032,-1728.17909024,0.00010998,2]
[333736297,1722426638044,-695.50208201,0.00010998,2]
[333736298,1722426638055,-661.805,0.00010998,2]
[333736299,1722426638066,-664.28,0.00010998,2]
[333736300,1722426638078,-461.99028763,0.00010998,2]
[333736301,1722426638089,-14038.42116727,0.00010998,2]
[333736302,1722426638100,-9147.58767893,0.00010998,2]
[333736303,1722426638111,-4426.77650109,0.00010998,2]
[333736304,1722426638122,-2557.26980134,0.00010998,2]
[333736328,1722426638371,-13370.87437173,0.00010998,2]
[333736330,1722426638384,-2800.07949957,0.00010998,2]
[333736332,1722426638393,-761.1347812,0.00010998,2]
[333736334,1722426638403,-1004.7654811,0.00010998,2]
[333736336,1722426638413,-311.13004879,0.00010999,2]
[333736338,1722426638422,-1724.6877,0.00010999,2]
[333736340,1722426638432,-52322.33014687,0.00011,2]
[333736343,1722426638444,-315.79154254,0.00011,2]
[333736354,1722426638541,-6000.0,0.00011,2]
[333736356,1722426638552,-3284.92062999,0.00011,2]
[333736358,1722426638564,-1777.0,0.00011,2]
[333736363,1722426638610,-657.76259654,0.00011,2]
[333736366,1722426638622,-605.30007405,0.00011,2]
[333736477,1722426639789,-1663.5002,0.00011,2]
[333736479,1722426639800,-844.59940527,0.00011,2]
[333736481,1722426639811,-21604.1366714,0.00011,2]
[333736485,1722426639836,-840.77658634,0.00011,2]
[333736492,1722426639894,-578.06080476,0.00011,2]
[333736505,1722426640008,-1986.34492326,0.00011,2]
[333736507,1722426640019,-4553.29982632,0.00011,2]
[333736546,1722426640971,-100171.26710463,0.00011,2]
[333736547,1722426640982,-27644.9798684,0.00011,2]
[333736548,1722426641009,-948.75088075,0.00011,2]
[333736549,1722426641021,-2335.77121904,0.00011,2]
[333736550,1722426641034,-1007.52312096,0.00011,2]
[333736552,1722426641047,-304.33735203,0.00011,2]
[333736558,1722426641097,-1308.35300609,0.00011,2]
[333736560,1722426641109,-17511.24375002,0.00011,2]
[333736675,1722426642688,-16343.625645,0.00011,2]
[333736676,1722426642746,-690.0,0.00011,2]
[333736677,1722426642760,-5420.415,0.00011,2]
[333736686,1722426643808,-359.73856219,0.00011,2]
[333736687,1722426643819,-7300.0,0.00011,2]
[333736688,1722426643870,-778.91438631,0.00011,2]
[333736689,1722426643881,-2899.78671362,0.00011,2]
[333736690,1722426643973,-328.04999985,0.00011,2]
[333736691,1722426643985,-274.49314456,0.00011,2]
[333736693,1722426645753,-1361.88681,0.00011,2]
[333736694,1722426645795,-759.08272986,0.00011,2]
[333736695,1722426645806,-561.55,0.00011,2]
[333736696,1722426645851,-1784.8746892,0.00011,2]
[333736697,1722426645861,-10964.35736231,0.00011,2]
[333736698,1722426645960,-353.47,0.00011,2]
[333736699,1722426645973,-571.30942693,0.00011,2]
[333736700,1722426645985,-297.45551968,0.00011,2]
[333736707,1722426646123,-1834.85362429,0.00011,2]
[333736715,1722426646194,-2858.56287337,0.00011,2]
[333736762,1722426699716,1005.0,0.00027,120]
[333736763,1722426723791,313.6,0.0001337,30]
[333736766,1722427252266,1015.0,0.00027,120]
[333736767,1722427258566,405.86,0.00027,120]
[333736768,1722427267044,287.46,0.0001337,30]
[333736771,1722427479219,10000.0,0.00027,120]
[333736772,1722427487931,10000.0,0.00027,120]
[333736774,1722427510257,7155.0,0.00027,120]
[333736776,1722427544653,1000.0,0.00025,60]
[333736777,1722427632069,-288.81,8.478e-05,2]
[333736779,1722427693243,703.09306552,8.478e-05,2]
[333736780,1722427697268,787.86721854,8.478e-05,2]
[333736781,1722427701669,600.0,8.478e-05,2]
[333736782,1722427702304,2563.60831318,8.478e-05,2]
[333736783,1722427704681,999.26961576,8.478e-05,2]
[333736786,1722427708170,250.0,8.478e-05,2]
[333736788,1722427714248,220.12459623,8.478e-05,2]
[333736789,1722427718391,7569.22719077,8.478e-05,2]
[333736790,1722427718412,10000.0,8.478e-05,2]
[333736791,1722427718432,10000.0,8.478e-05,2]
[333736792,1722427718453,10000.0,8.478e-05,2]
[333736793,1722427718473,10000.0,8.478e-05,2]
[333736794,1722427718494,10000.0,8.478e-05,2]
[333736796,1722427732140,-10000.0,8.478e-05,2]
[333736797,1722427736160,-10000.0,8.478e-05,2]
[333736798,1722427745216,-242.0,8.477e-05,2]
[333736799,1722427745238,-150.0,8.477e-05,2]
[333736800,1722427745259,-9608.0,8.478e-05,2]
[333736801,1722427749166,-10000.0,8.478e-05,2]
[333736802,1722427753391,-10000.0,8.478e-05,2]
[333736803,1722427757942,-10000.0,8.478e-05,2]
[333736804,1722427761837,-10000.0,8.478e-05,2]
[333736818,1722427765892,-10000.0,8.478e-05,2]
[333736819,1722427769814,-10000.0,8.478e-05,2]
[333736820,1722427773489,-10000.0,8.478e-05,2]
[333736821,1722427778904,-10000.0,8.478e-05,2]
[333736822,1722427784800,-10000.0,8.478e-05,2]
[333736823,1722427788835,-6618.97373958,8.478e-05,2]
[333736824,1722427788856,-1632.6662692,8.478e-05,2]
[333736829,1722427798019,1748.35999122,8.478e-05,2]
[333736830,1722427798039,583.03854275,8.478e-05,2]
[333736832,1722427818467,263.5,0.0001337,30]
[333736846,1722427832068,-255.0,9.325e-05,2]
[333736847,1722427832078,-371.64791517,0.0001,2]
[333736848,1722427832088,-281.0,0.00010257,2]
[333736849,1722427832098,-351.93926489,0.00010276,2]
[333736850,1722427832141,-562.21440665,0.00010276,2]
[333736851,1722427832158,-885.97075937,0.00010276,2]
[333736852,1722427832167,-800.0,0.00010306,2]
[333736853,1722427832177,-192.18945174,0.00010459,2]
[333736854,1722427832216,-7.81054826,0.00010459,2]
[333736855,1722427832226,-255.26203345,0.000105,2]
[333736856,1722427832237,-160.0,0.00010629,2]
[333736857,1722427832247,-288.81,0.00010742,2]
[333736858,1722427832257,-1370.35392487,0.00010748,2]
[333736859,1722427832268,-299.64607513,0.00010748,2]
[333736860,1722427832277,-1462.98136937,0.00010748,2]
[333736861,1722427832289,-279.92831739,0.00010748,2]
[333736866,1722427832711,-576.86300522,0.00010748,2]
[333736867,1722427832723,-3513.22730802,0.00010748,2]
[333736868,1722427832733,-5125.0,0.00010748,2]
[333736869,1722427832744,-5370.65207212,0.00010748,2]
[333736870,1722427832756,-15136.82925418,0.00010748,2]
[333736871,1722427832795,-636.636,0.00010748,2]
[333736872,1722427832808,-680.62794509,0.00010748,2]
[333736873,1722427832819,-848.43302,0.00010748,2]
[333736874,1722427832837,-4688.66082144,0.00010748,2]
[333736875,1722427832869,-11030.16088717,0.00010748,2]
[333736876,1722427832881,-940.04012856,0.000109,2]
[333736877,1722427832890,-802.2047,0.000109,2]
[333736878,1722427832899,-300.0,0.00010997,2]
[333736879,1722427832910,-10585.05227466,0.00010998,2]
[333736883,1722427838152,-1511.4144755,0.00010276,2]
[333736884,1722427838163,-1143.40519,0.00010276,2]
[333736885,1722427838175,-1850.0,0.00010276,2]
[333736889,1722427838306,-603.85717442,0.00010276,2]
[333736902,1722427838811,-452.64,0.00010276,2]
[333736903,1722427838828,-854.34805812,0.00010276,2]
[333736904,1722427838839,-4387.44005999,0.00010276,2]
[333736908,1722427839930,-626.79936067,0.00010276,2]
[333736909,1722427839968,-13199.14376565,0.00010276,2]
[333736911,1722427840023,-599.02514695,0.00010276,2]
[333736912,1722427840130,-801.25,0.00010276,2]
[333736913,1722427840288,-5903.13447416,0.00010276,2]
[333736914,1722427840300,-2984.89541403,0.00010276,2]
[333736915,1722427840312,-3162.64559458,0.00010276,2]
[333736933,1722427843042,-495.13548268,0.00010276,2]
[333736934,1722427843056,-546.96169475,0.00010276,2]
[333736935,1722427843091,-446.056239,0.00010276,2]
[333736936,1722427843103,-313.00235196,0.00010276,2]
[333736937,1722427843232,-562.6023957,0.00010276,2]
[333736938,1722427843243,-314.105432,0.00010276,2]
[333736939,1722427843254,-143038.33862019,0.00010276,2]
[333736940,1722427843263,-183796.20093035,0.00010276,2]
[333736941,1722427843273,-360.0,0.00010652,2]
[333736942,1722427843282,-1074.0,0.00010748,2]
[333736943,1722427843291,-2343.73734549,0.00010997,2]
[333736945,1722427843300,-25086.71130694,0.00010998,2]
[333736946,1722427843309,-9095.611395,0.00010998,2]
[333736947,1722427843318,-3311.4055621,0.00010998,2]
[333736948,1722427843327,-12065.9740315,0.00010998,2]
[333736949,1722427843336,-2000.0,0.00010999,2]
[333736950,1722427843346,-21999.35937455,0.00011,2]
[333736951,1722427843357,-19100.0001,0.00011,2]
[333736952,1722427843850,-600.0,0.00011,2]
[333736953,1722427843896,-8977.00573021,0.00011,2]
[333736954,1722427843909,-3380.47117152,0.00011,2]
[333736967,1722427846031,-1885.60544473,0.00011,2]
[333736968,1722427846089,-952.10214827,0.00011,2]
[333736969,1722427846167,-2100.0,0.00011,2]
[333736970,1722427846201,-743.3523116,0.00011,2]
[333736971,1722427846266,-3916.4,0.00011,2]
[333736984,1722428007567,4468.14617152,0.00025,60]
[333736998,1722428281668,241.54,0.0001337,30]
[333737001,1722428352521,314.49123368,0.00014776,30]
[333737002,1722428378560,314.49123368,0.00014776,30]
[333737003,1722428387245,281.66,8.23e-05,2]
[333737006,1722428427771,485.21486413,8.23e-05,2]
[333737007,1722428435709,1139.82314518,8.23e-05,2]
[333737008,1722428441690,250.0,8.23e-05,2]
[333737009,1722428442426,2936.32198343,8.23e-05,2]
[333737010,1722428442980,4323.94146451,8.23e-05,2]
[333737011,1722428443000,10000.0,8.23e-05,2]
[333737012,1722428443021,10000.0,8.23e-05,2]
[333737013,1722428443040,10000.0,8.23e-05,2]
[333737014,1722428443060,10000.0,8.23e-05,2]
[333737015,1722428443080,10000.0,8.23e-05,2]
[333737016,1722428443100,10000.0,8.23e-05,2]
[333737017,1722428443121,10000.0,8.23e-05,2]
[333737018,1722428443141,10000.0,8.23e-05,2]
[333737019,1722428443163,10000.0,8.23e-05,2]
[333737020,1722428443184,10000.0,8.23e-05,2]
[333737021,1722428443205,10000.0,8.23e-05,2]
[333737022,1722428443226,10000.0,8.23e-05,2]
[333737023,1722428443247,10000.0,8.23e-05,2]
[333737024,1722428443268,10000.0,8.23e-05,2]
[333737025,1722428443293,10000.0,8.23e-05,2]
[333737026,1722428443318,10000.0,8.23e-05,2]
[333737059,1722428914278,-319.16,8.219e-05,2]
[333737060,1722428914302,-150.0,8.229e-05,2]
[333737061,1722428914327,-1308.84,8.23e-05,2]
[333737083,1722429032133,-643.41,8.13e-05,2]
[333737084,1722429032143,-54.48036063,8.178e-05,2]
[333737085,1722429032154,-431.75108437,8.178e-05,2]
[333737086,1722429032163,-1201.57050272,8.178e-05,2]
[333737087,1722429032175,-300.0,8.229e-05,2]
[333737088,1722429032184,-150.0,8.229e-05,2]
[333737089,1722429032194,-13325.17907142,8.23e-05,2]
[333737090,1722429032353,-719.987115,8.23e-05,2]
[333737091,1722429032364,-308.55186272,8.23e-05,2]
[333737092,1722429032411,-3809.7014167,8.23e-05,2]
[333737094,1722429032422,-1222.70109988,8.23e-05,2]
[333737096,1722429032431,-158.92239483,8.23e-05,2]
[333737097,1722429032440,-485.21486413,8.23e-05,2]
[333737099,1722429032450,-411.57531364,8.23e-05,2]
[333737101,1722429032459,-872.74864532,8.23e-05,2]
[333737103,1722429032469,-871.50003279,8.23e-05,2]
[333737106,1722429032479,-155.0,8.23e-05,2]
[333737109,1722429032489,-250.0,8.23e-05,2]
[333737112,1722429032501,-155.37562233,8.23e-05,2]
[333737115,1722429032510,-816.77348892,8.23e-05,2]
[333737118,1722429032520,-1370.18392448,8.23e-05,2]
[333737121,1722429032529,-1426.72028857,8.23e-05,2]
[333737124,1722429032541,-3800.0,8.23e-05,2]
[333737128,1722429032551,-597.34227907,8.23e-05,2]
[333737144,1722429039146,-1270.89616337,8.23e-05,2]
[333737145,1722429039157,-430.3797302,8.23e-05,2]
[333737146,1722429039262,-341.99163343,8.23e-05,2]
[333737147,1722429039327,-263.47559294,8.23e-05,2]
[333737152,1722429041811,-1132.36289176,8.23e-05,2]
[333737153,1722429041821,-491.80654288,8.23e-05,2]
[333737154,1722429041838,-305.92779077,8.23e-05,2]
[333737155,1722429041848,-291.30856985,8.23e-05,2]
[333737157,1722429041857,-7571.3357031,8.23e-05,2]
[333737158,1722429041867,-759.85499635,8.23e-05,2]
[333737160,1722429041877,-20374.08569997,8.23e-05,2]
[333737161,1722429041887,-179.97721001,8.23e-05,2]
[333737163,1722429041897,-751.0,8.23e-05,2]
[333737164,1722429041907,-155.0,8.23e-05,2]
[333737165,1722429041916,-961.60302974,8.23e-05,2]
[333737166,1722429041925,-662.95094668,9e-05,2]
[333737167,1722429041935,-255.0,9.052e-05,2]
[333737168,1722429041945,-200.0,9.564e-05,2]
[333737169,1722429041954,-2000.0,9.603e-05,2]
[333737170,1722429041964,-5888.98,9.82e-05,2]
[333737171,1722429041975,-150.0,9.888e-05,2]
[333737172,1722429041984,-160.0,9.897e-05,2]
[333737174,1722429041994,-499.99,9.897e-05,2]
[333737175,1722429042004,-2857.31,9.905e-05,2]
[333737177,1722429042014,-285.13,9.94e-05,2]
[333737178,1722429042023,-150.99,9.957e-05,2]
[333737180,1722429042033,-454.18917514,0.0001,2]
[333737181,1722429042042,-2257.1637374,0.0001,2]
[333737182,1722429042052,-200.0,0.0001,2]
[333737183,1722429042062,-1000.0,0.00010055,2]
[333737184,1722429042071,-272.0,0.0001019,2]
[333737185,1722429042081,-169.54,0.00010407,2]
[333737186,1722429042091,-319.16,0.00010462,2]
[333737187,1722429042100,-83213.50314092,0.0001088,2]
[333737189,1722429043512,-8999.82468123,0.0001088,2]
[333737190,1722429043523,-54422.81355239,0.0001088,2]
[333737191,1722429043545,-2790.53821425,0.0001088,2]
[333737195,1722429043764,-184.371,0.00010723,2]
[333737196,1722429043774,-1970.95409761,0.0001088,2]
[333737197,1722429043783,-2617.9838,0.0001089,2]
[333737198,1722429043792,-641.0,0.0001089,2]
[333737199,1722429043802,-4189.1976,0.000109,2]
[333737200,1722429043811,-324.3608,0.000109,2]
[333737201,1722429043821,-3256.4883,0.000109,2]
[333737202,1722429043830,-15304.4617,0.000109,2]
[333737203,1722429043839,-493.19380459,0.000109,2]
[333737204,1722429043848,-168.79765688,0.000109,2]
[333737205,1722429043858,-250.0,0.00010959,2]
[333737206,1722429043867,-200.03374368,0.00010986,2]
[333737207,1722429043876,-200.077091,0.00010986,2]
[333737208,1722429043886,-1451.74304446,0.0001099,2]
[333737209,1722429043897,-153.38,0.0001099,2]
[333737210,1722429043906,-153.38,0.0001099,2]
[333737211,1722429043916,-153.38,0.0001099,2]
[333737212,1722429043925,-153.38,0.0001099,2]
[333737213,1722429043934,-153.38,0.0001099,2]
[333737214,1722429043944,-153.38,0.0001099,2]
[333737215,1722429044201,-153.38,0.0001099,2]
[333737216,1722429044232,-153.38,0.0001099,2]
[333737217,1722429044242,-46524.9206916,0.00010997,2]
[333737218,1722429044251,-8997.7998007,0.00010997,2]
[333737219,1722429044260,-154.33032651,0.00010997,2]
[333737220,1722429044269,-526.22036353,0.00010999,2]
[333737221,1722429044278,-2000.0,0.00010999,2]
[333737222,1722429044287,-150176.10027058,0.00011,2]
[333737223,1722429044302,-262.4462846,0.00011,2]
[333737233,1722429046259,-2263.4135711,0.00011,2]
[333737234,1722429046349,-1028.57603506,0.00011,2]
[333737237,1722429367601,221.41,0.0001337,30]
[333737241,1722429521393,1500.0,0.00027,120]
[333737242,1722429546954,298.22750195,0.00027,120]
[333737244,1722429837676,202.95,0.0001337,30]
[333737337,1722430232488,-333.01,8.219e-05,2]
[333737338,1722430232498,-1026.56168034,9.851e-05,2]
[333737339,1722430232508,-973.43831966,9.851e-05,2]
[333737340,1722430232517,-250.0,9.879e-05,2]
[333737341,1722430232527,-217.6,9.881e-05,2]
[333737342,1722430232536,-660.48,9.885e-05,2]
[333737343,1722430232545,-184.09406241,9.888e-05,2]
[333737344,1722430232554,-32.61598573,9.892e-05,2]
[333737345,1722430232565,-267.38401427,9.892e-05,2]
[333737346,1722430232574,-300.0,9.892e-05,2]
[333737347,1722430232583,-366.10805251,9.893e-05,2]
[333737348,1722430232594,-1850.72560984,9.893e-05,2]
[333737349,1722430232606,-2202.92086524,9.893e-05,2]
[333737350,1722430232637,-395.67391052,9.893e-05,2]
[333737351,1722430232648,-2354.73262451,9.893e-05,2]
[333737353,1722430232659,-453.51,9.893e-05,2]
[333737354,1722430232670,-1117.28551439,9.893e-05,2]
[333737355,1722430232682,-283.39033038,9.893e-05,2]
[333737363,1722430232752,-858.16390953,9.893e-05,2]
[333737365,1722430232762,-428.01531772,9.893e-05,2]
[333737412,1722430239540,-1592.65686539,9.893e-05,2]
[333737413,1722430239552,-602.5968,9.893e-05,2]
[333737414,1722430239684,-4528.89019997,9.893e-05,2]
[333737415,1722430239693,-1000.0,9.948e-05,2]
[333737416,1722430239703,-371.5992053,0.0001,2]
[333737417,1722430239712,-171.97,0.00010226,2]
[333737418,1722430239721,-216.0,0.00010371,2]
[333737419,1722430239731,-1666.81,0.00010371,2]
[333737420,1722430239741,-317.7243,0.00010431,2]
[333737421,1722430239750,-333.01,0.00010469,2]
[333737422,1722430239759,-324.3608,0.00010681,2]
[333737423,1722430239768,-1001.50645647,0.00010779,2]
[333737424,1722430239778,-150.0,0.00010779,2]
[333737425,1722430239787,-10767.7981,0.0001078,2]
[333737426,1722430239796,-1764.36387398,0.0001078,2]
[333737427,1722430239807,-415.15420603,0.0001078,2]
[333737428,1722430239818,-1086.4059576,0.0001078,2]
[333737429,1722430239830,-2603.10643675,0.0001078,2]
[333737430,1722430239857,-734.89712077,0.0001078,2]
[333737431,1722430239871,-1393.41253977,0.0001078,2]
[333737432,1722430239908,-3700.0,0.0001078,2]
[333737433,1722430240049,-27760.9389144,0.0001078,2]
[333737434,1722430240072,-425.4,0.0001078,2]
[333737459,1722430241848,-1335.53510618,0.0001078,2]
[333737460,1722430241864,-406.95706193,0.0001078,2]
[333737461,1722430241979,-19369.05868259,0.0001078,2]
[333737462,1722430241989,-420.0,0.00010881,2]
[333737463,1722430241998,-465.94600815,0.0001089,2]
[333737464,1722430242009,-6664.00000001,0.0001089,2]
[333737465,1722430243440,-4581.88607511,0.0001089,2]
[333737466,1722430243449,-295763.0,0.0001089,2]
[333737467,1722430243459,-452.78543707,0.00010899,2]
[333737468,1722430243468,-282.2224095,0.00010899,2]
[333737469,1722430243478,-282.22240947,0.00010899,2]
[333737470,1722430243488,-282.22240947,0.00010899,2]
[333737471,1722430243497,-282.22240947,0.00010899,2]
[333737472,1722430243506,-282.22240947,0.00010899,2]
[333737473,1722430243515,-282.22240947,0.00010899,2]
[333737474,1722430243526,-282.22240947,0.00010899,2]
[333737475,1722430243535,-452.78543707,0.00010899,2]
[333737476,1722430243545,-452.78543707,0.000109,2]
[333737477,1722430243554,-165.18250567,0.000109,2]
[333737478,1722430243563,-3256.4883,0.000109,2]
[333737479,1722430243572,-452.78543707,0.000109,2]
[333737480,1722430243581,-169.46309799,0.000109,2]
[333737482,1722430243836,-1000.0,0.000109,2]
[333737484,1722430243845,-170.99710766,0.000109,2]
[333737486,1722430243855,-493.19380459,0.000109,2]
[333737488,1722430243867,-170.99710763,0.000109,2]
[333737490,1722430243876,-170.99710763,0.000109,2]
[333737492,1722430243886,-170.99710763,0.000109,2]
[333737494,1722430243896,-168.79765688,0.000109,2]
[333737496,1722430243907,-500.0,0.00010911,2]
[333737498,1722430243916,-500.0,0.00010912,2]
[333737500,1722430243924,-500.0,0.00010912,2]
[333737502,1722430243936,-200.0,0.00010959,2]